fUSD/lending_fUSD_20260526
["ID","MTS","AMOUNT","RATE_DAILY","PERIOD"]
[423062408,1779809440000,-500.0,0.00024899,2]
[423062406,1779809440000,-500.0,0.00024899,2]
[423062410,1779809440000,-500.0,0.00024899,2]
[423062412,1779809440000,-503.8437914,0.00024899,2]
[423062416,1779809440000,-500.0,0.00024899,2]
[423062418,1779809440000,-500.0,0.00024899,2]
[423062420,1779809440000,-500.0,0.00024899,2]
[423062425,1779809440000,-500.0,0.00024899,2]
[423062414,1779809440000,-500.0,0.00024899,2]
[423062422,1779809440000,-500.0,0.00024899,2]
[423062427,1779809440000,-500.0,0.00024899,2]
[423062429,1779809440000,-500.0,0.00024899,2]
[423062369,1779809440000,-734.66921553,0.0002425,2]
[423062379,1779809440000,-1000.0,0.00024658,2]
[423062318,1779809440000,-151.0,0.00022719,2]
[423062362,1779809440000,-661.82,0.00024174,2]
[423062381,1779809440000,-185.3,0.00024658,2]
[423062323,1779809440000,-151.0,0.00022719,2]
[423062321,1779809440000,-151.0,0.00022719,2]
[423062327,1779809440000,-151.0,0.00022719,2]
[423062331,1779809440000,-322.0,0.00023,2]
[423062332,1779809440000,-184.0,0.00023,2]
[423062329,1779809440000,-154.0,0.00023,2]
[423062328,1779809440000,-151.0,0.00022719,2]
[423062338,1779809440000,-763.74,0.00023698,2]
[423062333,1779809440000,-169.0,0.00023,2]
[423062335,1779809440000,-180.0,0.00023,2]
[423062337,1779809440000,-207.99,0.00023531,2]
[423062336,1779809440000,-1142.55882368,0.00023143,2]
[423062334,1779809440000,-195.0,0.00023,2]
[423062330,1779809440000,-172.0,0.00023,2]
[423062341,1779809440000,-154.0,0.00024,2]
[423062339,1779809440000,-1142.55882368,0.00023756,2]
[423062375,1779809440000,-500.0,0.00024495,2]
[423062373,1779809440000,-1142.55882368,0.00024369,2]
[423062360,1779809440000,-743.55,0.00024174,2]
[423062356,1779809440000,-4758.50970972,0.0002415,2]
[423062354,1779809440000,-2020.84968468,0.0002415,2]
[423062358,1779809440000,-229.67,0.00024174,2]
[423062365,1779809440000,-170.42,0.000242,7]
[423062345,1779809440000,-184.0,0.00024,2]
[423062340,1779809440000,-1300.0,0.000239,8]
[423062343,1779809440000,-322.0,0.00024,2]
[423062350,1779809440000,-180.0,0.00024,2]
[423062352,1779809440000,-170.75647847,0.0002415,2]
[423062492,1779809441000,-9999.99,0.00026591,2]
[423062490,1779809441000,-763.74,0.00026068,2]
[423062489,1779809441000,-661.82,0.00025786,2]
[423062486,1779809441000,-1000.0,0.000256,2]
[423062484,1779809441000,-1005.97,0.00025258,2]
[423062482,1779809441000,-202.80029041,0.00025,2]
[423062491,1779809441000,-579.9,0.00026296,2]
[423062488,1779809441000,-743.55,0.00025786,2]
[423062485,1779809441000,-370.63604521,0.00025383,2]
[423062487,1779809441000,-229.67,0.00025786,2]
[423062494,1779809441000,-170.42,0.000266,7]
[423062483,1779809441000,-190.0,0.00025,2]
[423062500,1779809441000,-182.46,0.00027297,2]
[423062509,1779809441000,-182.49,0.00027301,2]
[423062502,1779809441000,-182.46,0.00027299,2]
[423062503,1779809441000,-182.46,0.00027299,2]
[423062504,1779809441000,-182.46,0.00027299,2]
[423062497,1779809441000,-5000.0,0.00027171,2]
[423062499,1779809441000,-5000.0,0.00027171,2]
[423062498,1779809441000,-5000.0,0.00027171,2]
[423062493,1779809441000,-3661.93,0.00026591,5]
[423062496,1779809441000,-5000.0,0.00027171,2]
[423062495,1779809441000,-6853.6276155,0.00027171,2]
[423062505,1779809441000,-505.8,0.000273,2]
[423062507,1779809441000,-502.36932317,0.00027301,2]
[423062508,1779809441000,-500.0,0.00027301,2]
[423062481,1779809441000,-723238.43478661,0.00025,2]
[423062501,1779809441000,-182.46,0.00027297,2]
[423062480,1779809441000,-162.81859007,0.00025,15]
[423062461,1779809441000,-500.0,0.00024899,2]
[423062473,1779809441000,-500.0,0.00024899,2]
[423062512,1779809441000,-428.71615946,0.00027397,2]
[423062431,1779809441000,-500.0,0.00024899,2]
[423062435,1779809441000,-500.0,0.00024899,2]
[423062436,1779809441000,-500.0,0.00024899,2]
[423062452,1779809441000,-500.0,0.00024899,2]
[423062454,1779809441000,-500.0,0.00024899,2]
[423062457,1779809441000,-500.0,0.00024899,2]
[423062438,1779809441000,-500.0,0.00024899,2]
[423062450,1779809441000,-500.0,0.00024899,2]
[423062455,1779809441000,-500.0,0.00024899,2]
[423062440,1779809441000,-386.65471752,0.00024899,2]
[423062446,1779809441000,-500.0,0.00024899,2]
[423062459,1779809441000,-500.0,0.00024899,2]
[423062471,1779809441000,-500.0,0.00024899,2]
[423062444,1779809441000,-168.15877499,0.00024899,2]
[423062442,1779809441000,-500.0,0.00024899,2]
[423062463,1779809441000,-500.0,0.00024899,2]
[423062465,1779809441000,-500.0,0.00024899,2]
[423062475,1779809441000,-500.0,0.00024899,2]
[423062476,1779809441000,-1142.55882368,0.00024982,2]
[423062478,1779809441000,-329.98464021,0.00025,2]
[423062469,1779809441000,-500.0,0.00024899,2]
[423062477,1779809441000,-171.9130133,0.00025,2]
[423062479,1779809441000,-193.0,0.00025,2]
[423062472,1779809441000,-500.0,0.00024899,2]
[423062474,1779809441000,-500.0,0.00024899,2]
[423062467,1779809441000,-500.0,0.00024899,2]
[423062470,1779809441000,-500.0,0.00024899,2]
[423062448,1779809441000,-500.0,0.00024899,2]
[423062506,1779809441000,-252.9,0.000273,2]
[423062433,1779809441000,-547.75839113,0.00024899,2]
[423062511,1779809441000,-182.46,0.00027301,2]
[423062546,1779809441000,-208.92835186,0.00029178,2]
[423062551,1779809441000,-1000.0,0.00029189,2]
[423062549,1779809441000,-1000.0,0.00029189,2]
[423062552,1779809441000,-1000.0,0.00029189,2]
[423062547,1779809441000,-215.42269777,0.00029178,2]
[423062545,1779809441000,-5203.49,0.00029,2]
[423062543,1779809441000,-285.0,0.00029,2]
[423062548,1779809441000,-1000.0,0.00029189,2]
[423062550,1779809441000,-1000.0,0.00029189,2]
[423062555,1779809441000,-285.27740441,0.000293,2]
[423062554,1779809441000,-1500.0,0.000293,7]
[423062556,1779809441000,-394.54066441,0.000293,2]
[423062561,1779809441000,-162.0,0.00029594,30]
[423062553,1779809441000,-170.42,0.000292,7]
[423062562,1779809441000,-180.0,0.00029594,30]
[423062557,1779809441000,-162.01651038,0.000293,2]
[423062566,1779809441000,-159.0,0.00029597,30]
[423062564,1779809441000,-401.0,0.00029594,30]
[423062563,1779809441000,-154.0,0.00029594,30]
[423062559,1779809441000,-500.0,0.00029584,2]
[423062558,1779809441000,-150.0,0.00029369,30]
[423062560,1779809441000,-195.0,0.00029594,30]
[423062568,1779809441000,-156.0,0.00029597,30]
[423062567,1779809441000,-154.0,0.00029597,30]
[423062570,1779809441000,-322.0,0.00029597,30]
[423062569,1779809441000,-156.0,0.00029597,30]
[423062572,1779809441000,-285.27740441,0.000296,2]
[423062510,1779809441000,-182.46,0.00027301,2]
[423062565,1779809441000,-153.0,0.00029597,30]
[423062544,1779809441000,-10000.0,0.00029,2]
[423062571,1779809441000,-184.0,0.00029597,30]
[423062535,1779809441000,-3208.7639928,0.00028928,2]
[423062513,1779809441000,-4603.13,0.000274,2]
[423062516,1779809441000,-4603.13,0.000274,2]
[423062515,1779809441000,-4603.13,0.000274,2]
[423062517,1779809441000,-4603.13,0.000274,2]
[423062514,1779809441000,-4603.13,0.000274,2]
[423062519,1779809441000,-150.0,0.00027521,2]
[423062528,1779809441000,-157.99,0.00028312,120]
[423062542,1779809441000,-162.01651038,0.00029,2]
[423062520,1779809441000,-160.6,0.00027859,30]
[423062529,1779809441000,-763.74,0.00028438,120]
[423062521,1779809441000,-173.01,0.00027885,30]
[423062518,1779809441000,-471.07,0.000275,14]
[423062523,1779809441000,-505.8,0.00028,2]
[423062524,1779809441000,-252.9,0.00028,2]
[423062527,1779809441000,-579.9,0.00028267,2]
[423062525,1779809441000,-169.0,0.000281,7]
[423062522,1779809441000,-150.0,0.0002797,30]
[423062536,1779809441000,-200.0,0.00028952,2]
[423062538,1779809441000,-169.0,0.00029,7]
[423062534,1779809441000,-9194.6412278,0.00028907,2]
[423062533,1779809441000,-10487.9804862,0.00028907,2]
[423062541,1779809441000,-394.54066441,0.00029,2]
[423062537,1779809441000,-5293.7895674,0.00029,2]
[423062530,1779809441000,-505.8,0.000285,2]
[423062539,1779809441000,-200.0,0.00029,2]
[423062532,1779809441000,-150.0,0.00028897,2]
[423062531,1779809441000,-252.9,0.000285,2]
[423062526,1779809441000,-370.63604521,0.00028124,2]
[423062540,1779809441000,-285.27740441,0.00029,2]
[423062609,1779809442000,-156.0,0.00030597,30]
[423062622,1779809442000,-195.0,0.00031594,30]
[423062618,1779809442000,-200.0,0.00031096,2]
[423062628,1779809442000,-156.0,0.00031597,30]
[423062611,1779809442000,-322.0,0.00030597,30]
[423062608,1779809442000,-156.0,0.00030597,30]
[423062606,1779809442000,-159.0,0.00030597,30]
[423062616,1779809442000,-166.6108065,0.00030975,2]
[423062615,1779809442000,-370.63604521,0.00030865,2]
[423062613,1779809442000,-184.0,0.00030597,30]
[423062604,1779809442000,-154.0,0.00030594,30]
[423062603,1779809442000,-180.0,0.00030594,30]
[423062619,1779809442000,-209877.0,0.000313,2]
[423062637,1779809442000,-2020.84968466,0.00032025,2]
[423062620,1779809442000,-300.0,0.00031305,2]
[423062621,1779809442000,-300.0,0.00031494,2]
[423062623,1779809442000,-180.0,0.00031594,30]
[423062624,1779809442000,-154.0,0.00031594,30]
[423062627,1779809442000,-154.0,0.00031597,30]
[423062626,1779809442000,-159.0,0.00031597,30]
[423062625,1779809442000,-153.0,0.00031597,30]
[423062629,1779809442000,-156.0,0.00031597,30]
[423062633,1779809442000,-150.0,0.00031858,2]
[423062634,1779809442000,-150.0,0.0003192,2]
[423062632,1779809442000,-250.0,0.00031668,2]
[423062631,1779809442000,-184.0,0.00031597,30]
[423062607,1779809442000,-154.0,0.00030597,30]
[423062617,1779809442000,-170.42,0.00031,7]
[423062605,1779809442000,-153.0,0.00030597,30]
[423062579,1779809442000,-500.0,0.00029999,2]
[423062600,1779809442000,-241.28411708,0.00030387,2]
[423062575,1779809442000,-471.07,0.000299,14]
[423062577,1779809442000,-394.54066441,0.000299,2]
[423062574,1779809442000,-162.01651038,0.000296,2]
[423062573,1779809442000,-394.54066441,0.000296,2]
[423062576,1779809442000,-285.27740441,0.000299,2]
[423062581,1779809442000,-500.0,0.00029999,2]
[423062582,1779809442000,-500.0,0.00029999,2]
[423062580,1779809442000,-471.04770767,0.00029999,2]
[423062578,1779809442000,-458.25933065,0.00029999,2]
[423062583,1779809442000,-538.5510174,0.00029999,2]
[423062585,1779809442000,-500.0,0.00029999,2]
[423062587,1779809442000,-500.0,0.00029999,2]
[423062588,1779809442000,-500.0,0.00029999,2]
[423062584,1779809442000,-500.0,0.00029999,2]
[423062586,1779809442000,-500.0,0.00029999,2]
[423062589,1779809442000,-500.0,0.00029999,2]
[423062591,1779809442000,-500.0,0.00030106,2]
[423062601,1779809442000,-195.0,0.00030594,30]
[423062590,1779809442000,-430.07349821,0.00029999,2]
[423062592,1779809442000,-185.3,0.00030137,2]
[423062593,1779809442000,-200.0,0.00030137,2]
[423062595,1779809442000,-285.27740441,0.000302,2]
[423062598,1779809442000,-199.01484785,0.00030327,2]
[423062596,1779809442000,-394.54066441,0.000302,2]
[423062597,1779809442000,-579.9,0.00030239,2]
[423062594,1779809442000,-2872.199999,0.000302,2]
[423062599,1779809442000,-150.0,0.00030341,2]
[423062602,1779809442000,-165.46500359,0.00030594,30]
[423062638,1779809442000,-311.97,0.00032055,2]
[423062636,1779809442000,-170.75647845,0.00032025,2]
[423062639,1779809442000,-471.07,0.000321,14]
[423062683,1779809442000,-154.0,0.00034597,30]
[423062681,1779809442000,-154.0,0.00034594,30]
[423062680,1779809442000,-180.0,0.00034594,30]
[423062670,1779809442000,-184.0,0.00033597,30]
[423062685,1779809442000,-156.0,0.00034597,30]
[423062684,1779809442000,-156.0,0.00034597,30]
[423062686,1779809442000,-322.0,0.00034597,30]
[423062674,1779809442000,-1223.937,0.00034033,2]
[423062678,1779809442000,-579.9,0.00034182,7]
[423062676,1779809442000,-471.07,0.000341,14]
[423062688,1779809442000,-5001.499999,0.00035,30]
[423062698,1779809442000,-300.0,0.00035283,2]
[423062687,1779809442000,-184.0,0.00034597,30]
[423062697,1779809442000,-594.73329586,0.00035283,2]
[423062689,1779809442000,-150.0,0.00035124,2]
[423062690,1779809442000,-344.4170137,0.00035283,2]
[423062694,1779809442000,-300.09,0.00035283,2]
[423062695,1779809442000,-1148.70755237,0.00035283,2]
[423062691,1779809442000,-527.56699294,0.00035283,2]
[423062692,1779809442000,-865.53028801,0.00035283,2]
[423062693,1779809442000,-950.21744792,0.00035283,2]
[423062700,1779809442000,-578.19877315,0.00035283,2]
[423062699,1779809442000,-464.43646992,0.00035283,2]
[423062701,1779809442000,-452.48121198,0.00035283,2]
[423062702,1779809442000,-300.0,0.00035283,2]
[423062703,1779809442000,-300.0,0.00035283,2]
[423062635,1779809442000,-5531.0,0.00032,3]
[423062672,1779809442000,-370.63604521,0.00033606,2]
[423062679,1779809442000,-195.0,0.00034594,30]
[423062696,1779809442000,-309.98994128,0.00035283,2]
[423062664,1779809442000,-154.0,0.00033594,30]
[423062682,1779809442000,-159.0,0.00034597,30]
[423062630,1779809442000,-322.0,0.00031597,30]
[423062640,1779809442000,-2457.064,0.00032147,31]
[423062643,1779809442000,-207.99,0.00032408,120]
[423062642,1779809442000,-579.9,0.0003221,5]
[423062653,1779809442000,-156.0,0.00032597,30]
[423062649,1779809442000,-162.0,0.00032597,30]
[423062645,1779809442000,-180.0,0.00032594,30]
[423062646,1779809442000,-154.0,0.00032594,30]
[423062644,1779809442000,-195.0,0.00032594,30]
[423062657,1779809442000,-5531.0,0.000328,5]
[423062654,1779809442000,-156.0,0.00032597,30]
[423062655,1779809442000,-322.0,0.00032597,30]
[423062652,1779809442000,-154.0,0.00032597,30]
[423062641,1779809442000,-167.321,0.00032147,31]
[423062650,1779809442000,-159.0,0.00032597,30]
[423062656,1779809442000,-184.0,0.00032597,30]
[423062668,1779809442000,-156.0,0.00033597,30]
[423062666,1779809442000,-154.0,0.00033597,30]
[423062663,1779809442000,-180.0,0.00033594,30]
[423062661,1779809442000,-150.0,0.00033451,2]
[423062665,1779809442000,-159.0,0.00033597,30]
[423062662,1779809442000,-195.0,0.00033594,30]
[423062667,1779809442000,-156.0,0.00033597,30]
[423062659,1779809442000,-170.42,0.00033,7]
[423062658,1779809442000,-2000.0,0.00033,7]
[423062660,1779809442000,-500.0,0.00033127,120]
[423062669,1779809442000,-322.0,0.00033597,30]
[423062743,1779809443000,-195.0,0.00035594,30]
[423062747,1779809443000,-154.0,0.00035597,30]
[423062746,1779809443000,-159.0,0.00035597,30]
[423062728,1779809443000,-594.73329586,0.00035283,2]
[423062742,1779809443000,-170.42,0.000354,7]
[423062741,1779809443000,-203.90755156,0.00035344,120]
[423062740,1779809443000,-605.24124213,0.00035283,2]
[423062737,1779809443000,-300.0,0.00035283,2]
[423062738,1779809443000,-1096.16608281,0.00035283,2]
[423062736,1779809443000,-310.24516055,0.00035283,2]
[423062745,1779809443000,-154.0,0.00035594,30]
[423062739,1779809443000,-493.32888988,0.00035283,2]
[423062744,1779809443000,-180.0,0.00035594,30]
[423062753,1779809443000,-185.3,0.00035616,2]
[423062750,1779809443000,-322.0,0.00035597,30]
[423062751,1779809443000,-184.0,0.00035597,30]
[423062755,1779809443000,-9194.6412278,0.00035618,2]
[423062752,1779809443000,-204.07815986,0.00035616,7]
[423062754,1779809443000,-10487.9804862,0.00035618,2]
[423062749,1779809443000,-156.0,0.00035597,30]
[423062759,1779809443000,-409.0,0.0003588,5]
[423062758,1779809443000,-500.0,0.0003588,5]
[423062756,1779809443000,-3208.7639928,0.00035643,2]
[423062760,1779809443000,-200.0,0.000361,30]
[423062761,1779809443000,-579.9,0.00036153,30]
[423062733,1779809443000,-520.61017099,0.00035283,2]
[423062748,1779809443000,-156.0,0.00035597,30]
[423062734,1779809443000,-300.0,0.00035283,2]
[423062771,1779809443000,-500.0,0.00037308,120]
[423062729,1779809443000,-464.43646992,0.00035283,2]
[423062708,1779809443000,-605.24124213,0.00035283,2]
[423062709,1779809443000,-300.0,0.00035283,2]
[423062704,1779809443000,-484.71261076,0.00035283,2]
[423062706,1779809443000,-521.12106693,0.00035283,2]
[423062705,1779809443000,-310.24516055,0.00035283,2]
[423062711,1779809443000,-1068.30020172,0.00035283,2]
[423062710,1779809443000,-528.42557,0.00035283,2]
[423062707,1779809443000,-493.32888988,0.00035283,2]
[423062712,1779809443000,-894.55274135,0.00035283,2]
[423062715,1779809443000,-300.0,0.00035283,2]
[423062714,1779809443000,-302.1844563,0.00035283,2]
[423062721,1779809443000,-527.56699294,0.00035283,2]
[423062713,1779809443000,-726.99445071,0.00035283,2]
[423062722,1779809443000,-865.53028801,0.00035283,2]
[423062718,1779809443000,-300.0,0.00035283,2]
[423062716,1779809443000,-300.96252262,0.00035283,2]
[423062719,1779809443000,-1263.82495173,0.00035283,2]
[423062717,1779809443000,-300.0,0.00035283,2]
[423062723,1779809443000,-950.21744792,0.00035283,2]
[423062720,1779809443000,-344.4170137,0.00035283,2]
[423062725,1779809443000,-1148.70755237,0.00035283,2]
[423062735,1779809443000,-484.71261076,0.00035283,2]
[423062726,1779809443000,-309.98994128,0.00035283,2]
[423062727,1779809443000,-300.0,0.00035283,2]
[423062730,1779809443000,-578.19877315,0.00035283,2]
[423062732,1779809443000,-545.07983248,0.00035283,2]
[423062731,1779809443000,-452.48121198,0.00035283,2]
[423062724,1779809443000,-300.09,0.00035283,2]
[423062766,1779809443000,-932.58896088,0.000367,7]
[423062757,1779809443000,-304.0,0.0003569,30]
[423062763,1779809443000,-630.78,0.00036437,7]
[423062798,1779809443000,-1140.97,0.000389,120]
[423062803,1779809443000,-15918.21402603,0.000389,2]
[423062809,1779809443000,-167.07,0.00038925,120]
[423062797,1779809443000,-200.0,0.00038809,20]
[423062800,1779809443000,-2688.56,0.000389,120]
[423062799,1779809443000,-678.79,0.000389,120]
[423062807,1779809443000,-1000.0,0.00038906,90]
[423062804,1779809443000,-200.0,0.000389,14]
[423062802,1779809443000,-1158.94,0.000389,120]
[423062801,1779809443000,-1778.95,0.000389,120]
[423062806,1779809443000,-1548.0,0.00038904,30]
[423062805,1779809443000,-400.0,0.00038904,120]
[423062810,1779809443000,-167.07646058,0.00038975,120]
[423062812,1779809443000,-1000.0,0.00038975,90]
[423062814,1779809443000,-710.68817976,0.00038995,5]
[423062816,1779809443000,-612.0,0.00039,90]
[423062821,1779809443000,-5395.32946448,0.00039,4]
[423062818,1779809443000,-160.0,0.00039,120]
[423062822,1779809443000,-1747.57,0.00039,120]
[423062820,1779809443000,-356.9,0.00039,120]
[423062826,1779809443000,-370.63604521,0.00039089,2]
[423062823,1779809443000,-495.72378646,0.00039,30]
[423062824,1779809443000,-1516.68,0.00039,7]
[423062825,1779809443000,-1078.84961858,0.00039,120]
[423062829,1779809443000,-500.0,0.00039168,2]
[423062830,1779809443000,-1548.0,0.00039178,30]
[423062762,1779809443000,-370.63604521,0.00036348,2]
[423062788,1779809443000,-1000.0,0.00038408,120]
[423062789,1779809443000,-300.0,0.0003851,30]
[423062828,1779809443000,-500.0,0.00039168,2]
[423062795,1779809443000,-250.0,0.00038808,30]
[423062791,1779809443000,-200.0,0.000387,14]
[423062765,1779809443000,-630.78,0.0003662,7]
[423062764,1779809443000,-540.67,0.00036437,7]
[423062767,1779809443000,-207.99,0.00036846,120]
[423062768,1779809443000,-150.0,0.0003688,2]
[423062769,1779809443000,-200.0,0.0003691,30]
[423062770,1779809443000,-214.42214728,0.000371,30]
[423062784,1779809443000,-271.3689685,0.00038356,2]
[423062827,1779809443000,-199.01484785,0.00039105,2]
[423062774,1779809443000,-4103.8209537,0.00037845,2]
[423062776,1779809443000,-505.8,0.00038,2]
[423062778,1779809443000,-620.31553322,0.00038019,2]
[423062773,1779809443000,-36138.0502541,0.00037845,2]
[423062775,1779809443000,-170.42,0.000379,7]
[423062772,1779809443000,-200.0,0.0003771,30]
[423062777,1779809443000,-252.9,0.00038,2]
[423062779,1779809443000,-579.9,0.00038125,30]
[423062792,1779809443000,-150.0,0.00038724,2]
[423062793,1779809443000,-330.0,0.00038795,54]
[423062790,1779809443000,-1548.0,0.0003863,30]
[423062786,1779809443000,-1000.0,0.00038364,90]
[423062787,1779809443000,-270.0,0.00038365,120]
[423062796,1779809443000,-250.0,0.00038808,30]
[423062785,1779809443000,-1548.0,0.00038356,30]
[423062783,1779809443000,-315.0,0.000382,2]
[423062780,1779809443000,-500.0,0.00038199,2]
[423062781,1779809443000,-505.8,0.000382,2]
[423062782,1779809443000,-252.9,0.000382,2]
[423062794,1779809443000,-200.0,0.000388,14]
[423062869,1779809444000,-500.0,0.00039189,120]
[423062872,1779809444000,-211.59902429,0.00039189,120]
[423062867,1779809444000,-500.0,0.00039189,120]
[423062865,1779809444000,-500.0,0.00039189,120]
[423062863,1779809444000,-500.0,0.00039189,120]
[423062864,1779809444000,-500.0,0.00039189,120]
[423062862,1779809444000,-500.0,0.00039189,120]
[423062873,1779809444000,-500.0,0.00039189,120]
[423062868,1779809444000,-500.0,0.00039189,120]
[423062861,1779809444000,-279.98888808,0.00039189,120]
[423062866,1779809444000,-500.0,0.00039189,120]
[423062860,1779809444000,-500.0,0.00039189,120]
[423062876,1779809444000,-500.0,0.00039189,120]
[423062870,1779809444000,-500.0,0.00039189,120]
[423062874,1779809444000,-500.0,0.00039189,120]
[423062878,1779809444000,-493.94660815,0.00039189,120]
[423062877,1779809444000,-220.2246924,0.00039189,120]
[423062875,1779809444000,-500.0,0.00039189,120]
[423062879,1779809444000,-500.0,0.00039189,120]
[423062880,1779809444000,-516.13911692,0.00039189,120]
[423062884,1779809444000,-533.51586376,0.00039189,120]
[423062883,1779809444000,-500.0,0.00039189,120]
[423062882,1779809444000,-500.0,0.00039189,120]
[423062859,1779809444000,-500.0,0.00039189,120]
[423062881,1779809444000,-302.98876008,0.00039189,120]
[423062871,1779809444000,-295.41243394,0.00039189,120]
[423062858,1779809444000,-500.0,0.00039189,120]
[423062844,1779809444000,-441.19469248,0.00039189,120]
[423062856,1779809444000,-170.80263555,0.00039189,120]
[423062886,1779809444000,-500.0,0.00039189,120]
[423062836,1779809444000,-441.19469248,0.00039189,120]
[423062834,1779809444000,-273.72850001,0.00039189,120]
[423062833,1779809444000,-76.75090702,0.00039189,120]
[423062832,1779809444000,-2715.95719721,0.00039188,32]
[423062838,1779809444000,-441.19469248,0.00039189,120]
[423062831,1779809444000,-726.24001659,0.00039188,120]
[423062835,1779809444000,-441.19469248,0.00039189,120]
[423062837,1779809444000,-441.19469248,0.00039189,120]
[423062841,1779809444000,-165.19285592,0.00039189,30]
[423062847,1779809444000,-441.19469248,0.00039189,120]
[423062843,1779809444000,-441.19469248,0.00039189,120]
[423062846,1779809444000,-441.19469248,0.00039189,120]
[423062839,1779809444000,-441.19469248,0.00039189,120]
[423062848,1779809444000,-441.19469248,0.00039189,120]
[423062845,1779809444000,-441.19469248,0.00039189,120]
[423062840,1779809444000,-441.19469248,0.00039189,120]
[423062849,1779809444000,-441.19469248,0.00039189,120]
[423062842,1779809444000,-441.19469248,0.00039189,120]
[423062850,1779809444000,-441.19469248,0.00039189,120]
[423062853,1779809444000,-225.99307386,0.00039189,120]
[423062852,1779809444000,-629.27974548,0.00039189,120]
[423062851,1779809444000,-370.49322215,0.00039189,120]
[423062857,1779809444000,-169.7868309,0.00039189,100]
[423062855,1779809444000,-178.38116962,0.00039189,120]
[423062854,1779809444000,-238.7704607,0.00039189,120]
[423062895,1779809444000,-595.27283859,0.00039189,120]
[423062902,1779809444000,-817.21,0.00039189,120]
[423062896,1779809444000,-500.0,0.00039189,120]
[423062928,1779809444000,-500.0,0.00039189,120]
[423062927,1779809444000,-500.0,0.00039189,120]
[423062918,1779809444000,-817.21,0.00039189,120]
[423062930,1779809444000,-500.0,0.00039189,120]
[423062929,1779809444000,-817.21,0.00039189,120]
[423062920,1779809444000,-817.21,0.00039189,120]
[423062922,1779809444000,-500.0,0.00039189,120]
[423062923,1779809444000,-817.21,0.00039189,120]
[423062921,1779809444000,-500.0,0.00039189,120]
[423062924,1779809444000,-500.0,0.00039189,120]
[423062925,1779809444000,-817.21,0.00039189,120]
[423062926,1779809444000,-500.0,0.00039189,120]
[423062932,1779809444000,-817.21,0.00039189,120]
[423062931,1779809444000,-500.0,0.00039189,120]
[423062894,1779809444000,-500.0,0.00039189,120]
[423062934,1779809444000,-500.0,0.00039189,120]
[423062933,1779809444000,-500.0,0.00039189,120]
[423062939,1779809444000,-500.0,0.00039189,120]
[423062940,1779809444000,-500.0,0.00039189,120]
[423062941,1779809444000,-500.0,0.00039189,120]
[423062938,1779809444000,-817.21,0.00039189,120]
[423062935,1779809444000,-817.21,0.00039189,120]
[423062937,1779809444000,-290.29735361,0.00039189,120]
[423062943,1779809444000,-817.21,0.00039189,120]
[423062942,1779809444000,-500.0,0.00039189,120]
[423062919,1779809444000,-500.0,0.00039189,120]
[423062911,1779809444000,-500.0,0.00039189,120]
[423062936,1779809444000,-500.0,0.00039189,120]
[423062912,1779809444000,-500.0,0.00039189,120]
[423062885,1779809444000,-500.0,0.00039189,120]
[423062915,1779809444000,-817.21,0.00039189,120]